bitfinex/quotes_ETHUSD_20251117
["timestamp","ask_amount","ask_price","bid_price","bid_amount"]
[1763351372963,0.002,3178.8,3178.7,8.61021457]
[1763351373586,0.002,3178.8,3178.7,8.17715533]
[1763351373782,0.002,3178.8,3178.7,9.31089613]
[1763351374493,0.002,3178.8,3178.7,9.4369727]
[1763351374697,0.002,3178.8,3178.7,1.5392448]
[1763351376098,0.002,3178.8,3178.7,0.405504]
[1763351378415,0.002,3178.8,3178.7,0.53157978]
[1763351379278,0.002,3178.8,3178.7,1.66532058]
[1763351383229,0.002,3178.8,3178.7,5.90837982]
[1763351383381,0.002,3178.8,3178.7,5.47532058]
[1763351385223,0.002,3178.8,3178.7,11.17478043]
[1763351387928,0.002,3178.8,3178.7,13.06878043]
[1763351388106,0.002,3178.8,3178.7,11.17478043]
[1763351390239,0.002,3178.8,3178.7,11.04870465]
[1763351391040,0.002,3178.8,3178.7,7.23870465]
[1763351393175,0.002,3178.8,3178.7,8.91553689]
[1763351395178,0.002,3178.8,3178.7,7.23870465]
[1763351400510,0.002,3178.8,3178.7,7.36478241]
[1763351401680,0.4827,3178.8,3178.7,7.36478241]
[1763351401873,0.002,3178.8,3178.7,7.36478241]
[1763351402073,0.9451,3178.8,3178.7,7.23870465]
[1763351402284,0.002,3178.8,3178.7,7.23870465]
[1763351402730,0.9451,3178.8,3178.7,8.50932129]
[1763351402873,0.4827,3178.8,3178.7,2.80986144]
[1763351403073,0.9451,3178.8,3178.7,6.83320065]
[1763351403874,0.002,3178.8,3178.7,7.23870465]
[1763351404173,0.002,3179.0,3178.8,1.5392448]
[1763351405294,0.002,3179.0,3178.9,0.83856324]
[1763351405898,0.002,3179.7,3179.0,0.405504]
[1763351406225,0.002,3179.8,3179.4,1.8550448]
[1763351406374,0.002,3179.8,3179.7,7.23870465]
[1763351406579,0.002,3179.8,3179.7,8.08071712]
[1763351406987,0.002,3179.8,3179.7,8.27751712]
[1763351407197,0.1923,3182.0,3179.8,1.5892448]
[1763351407198,0.4624,3181.1,3179.8,1.5892448]
[1763351407409,0.4624,3181.1,3180.8,5.69945985]
[1763351407780,1.138,3180.9,3180.8,5.69945985]
[1763351410729,1.14,3180.9,3180.8,5.69945985]
[1763351416838,1.14,3180.9,3180.8,5.6934795]
[1763351417036,1.14,3180.9,3180.8,5.63788232]
[1763351419501,1.14,3180.9,3180.3,0.94507685]
[1763351419716,0.4875,3180.8,3180.5,5.63788232]
[1763351420212,0.4972,3180.6,3180.5,6.77162312]
[1763351420928,0.9847,3180.6,3180.5,6.77162312]
[1763351421799,0.1969,3180.9,3180.5,6.77162312]
[1763351422000,0.4776,3180.6,3180.5,1.5392448]
[1763351422404,0.9316,3180.6,3180.5,1.5392448]
[1763351423027,0.9316,3180.6,3180.5,7.17712712]
[1763351423226,0.1969,3180.9,3180.5,7.17712712]
[1763351423499,0.6509,3180.9,3180.8,5.63788232]
[1763351424037,1.1285,3180.9,3180.8,5.63788232]
[1763351428821,0.002,3181.3,3180.8,7.17712712]
[1763351429146,0.002,3181.6,3181.3,1.5392448]
[1763351429330,0.002,3181.6,3181.5,7.17712712]
[1763351429836,0.4796,3181.6,3181.5,7.17712712]
[1763351430339,0.002,3181.6,3181.5,7.17712712]
[1763351430761,0.1923,3182.5,3181.6,1.5392448]
[1763351431060,0.6463,3182.5,3182.4,5.63788232]
[1763351431274,0.6463,3182.5,3181.6,0.40592698]
[1763351431558,0.454,3182.4,3182.3,5.63788232]
[1763351432023,0.9316,3182.4,3182.3,5.63788232]
[1763351434148,0.4776,3182.4,3182.3,5.63788232]
[1763351434355,0.9316,3182.4,3182.3,5.63788232]
[1763351434864,0.9316,3182.4,3182.3,6.77162312]
[1763351436626,0.9316,3182.4,3181.8,0.9316]
[1763351436867,0.4776,3181.9,3181.8,1.1337408]
[1763351437362,0.9316,3181.9,3181.8,1.1337408]
[1763351439464,0.9316,3181.9,3180.7,1.66922642]
[1763351439768,0.9316,3181.8,3181.0,5.63788232]
[1763351440155,0.454,3181.7,3181.1,1.1337408]
[1763351440354,0.454,3181.7,3180.7,0.94503517]
[1763351440528,0.454,3181.7,3180.4,5.63788232]
[1763351440529,0.6735,3180.8,3180.4,5.63788232]
[1763351440724,0.6735,3180.8,3180.2,0.94519596]
[1763351440725,0.4776,3180.7,3180.2,0.94519596]
[1763351440925,0.4776,3180.7,3180.0,5.64111756]
[1763351440926,0.454,3180.7,3180.0,5.64111756]
[1763351441128,0.6735,3180.1,3179.2,1.66922642]
[1763351441355,0.6735,3180.1,3179.8,0.405504]
[1763351441750,0.6735,3180.1,3179.2,1.66922642]
[1763351442064,1.1275,3180.1,3179.7,0.6735]
[1763351442253,0.454,3180.0,3179.2,9.14359698]
[1763351442449,0.454,3180.0,3179.3,1.1337408]
[1763351442649,0.454,3180.0,3179.3,2.07913335]
[1763351443765,0.454,3180.0,3179.3,0.94539255]
[1763351443964,0.4776,3179.4,3178.9,0.36759365]
[1763351444179,0.9316,3179.3,3179.1,0.454]
[1763351444341,0.4776,3179.2,3179.1,0.454]
[1763351444545,0.9316,3179.2,3179.1,0.455]
[1763351444747,0.9316,3179.2,3179.1,0.001]
[1763351448575,0.454,3179.6,3179.1,0.001]
[1763351449186,0.4776,3179.2,3179.1,0.001]
[1763351450082,0.9316,3179.2,3179.1,0.001]
[1763351450382,0.4776,3179.2,3179.1,0.001]
[1763351450555,0.1959,3180.1,3179.1,0.001]
[1763351450556,0.454,3179.4,3179.1,0.001]
[1763351453090,0.4771,3179.2,3179.1,0.001]
[1763351454996,0.454,3179.4,3179.1,0.001]
[1763351455369,0.454,3179.4,3179.1,1.1347408]
[1763351457402,0.4914,3179.7,3179.2,0.405504]
[1763351457605,0.4914,3179.7,3179.3,1.1337408]
[1763351459186,0.4914,3179.9,3179.3,1.1337408]
[1763351460302,0.4771,3179.4,3179.2,0.49363788]
[1763351460629,0.4771,3179.3,3179.1,0.001]
[1763351460911,0.4914,3179.8,3179.1,0.001]
[1763351461114,0.4914,3180.0,3179.1,0.001]
[1763351462912,0.4914,3180.0,3179.2,1.5392448]
[1763351463094,0.4914,3180.0,3179.8,5.64216155]
[1763351463593,0.4771,3179.9,3179.8,5.64216155]
[1763351464494,0.9685,3179.9,3179.8,5.64216155]
[1763351465702,0.6873,3180.1,3179.8,5.64216155]
[1763351466012,0.6873,3180.1,3180.0,5.64216155]
[1763351466200,0.1959,3180.1,3180.0,5.64216155]
[1763351466508,0.673,3180.1,3180.0,5.64216155]
[1763351466884,1.1644,3180.1,3180.0,5.64216155]
[1763351470324,0.68949505,3180.8,3180.1,1.1337408]
[1763351470540,0.1959,3180.8,3180.7,5.64216155]
[1763351470839,0.673,3180.8,3180.7,5.64216155]
[1763351471137,1.1644,3180.8,3180.7,5.64216155]
[1763351472235,1.1644,3180.8,3180.5,5.64216155]
[1763351472437,0.4914,3180.7,3180.5,5.64216155]
[1763351472737,0.4771,3180.6,3180.5,6.77590235]
[1763351473806,0.4914,3181.1,3180.5,6.77590235]
[1763351474137,0.4914,3181.1,3180.7,5.64216155]
[1763351474539,0.4914,3181.1,3180.5,1.1337408]
[1763351474540,0.6766,3180.8,3180.5,1.1337408]
[1763351474735,0.4771,3180.6,3180.5,1.1337408]
[1763351475129,0.9685,3180.6,3180.5,1.1337408]
[1763351475529,0.9685,3180.6,3180.2,5.64216155]
[1763351475739,0.4771,3180.3,3180.0,5.64216155]
[1763351476052,0.4771,3180.3,3180.1,1.1337408]
[1763351476214,0.4914,3180.2,3180.1,1.1337408]
[1763351476418,0.9704,3180.2,3180.1,1.1337408]
[1763351476720,0.4808,3180.5,3180.1,1.1337408]
[1763351476914,0.4808,3180.5,3180.1,5.64005976]
[1763351477117,0.4808,3180.5,3180.1,5.69574942]
[1763351480639,0.4808,3180.7,3180.1,5.69574942]
[1763351480973,0.1995,3180.8,3180.4,5.69574942]
[1763351481961,0.6814,3180.8,3180.4,5.69574942]
[1763351482441,0.1995,3180.8,3180.4,5.69574942]
[1763351482648,0.4819,3180.7,3180.4,5.69574942]
[1763351482855,0.6814,3180.8,3180.4,5.69574942]
[1763351483279,0.1995,3180.8,3180.4,5.69574942]
[1763351483484,0.6814,3180.8,3180.4,5.69574942]
[1763351484047,0.6814,3180.8,3180.5,1.1337408]
[1763351484555,0.4819,3181.1,3180.7,5.69574942]
[1763351484756,0.4819,3181.1,3180.8,1.1337408]
[1763351485075,0.4819,3181.1,3180.2,4.9437408]
[1763351485076,0.4819,3181.1,3181.0,6.82949022]
[1763351485559,0.9327,3181.1,3181.0,6.82949022]
[1763351486273,0.4508,3181.1,3181.0,6.82949022]
[1763351486580,0.9327,3181.1,3181.0,6.82949022]
[1763351487443,0.4819,3181.4,3181.0,6.82949022]
[1763351487646,0.4508,3181.1,3181.0,6.82949022]
[1763351487846,0.4508,3181.1,3181.0,1.1337408]
[1763351488053,0.9327,3181.1,3181.0,1.1337408]
[1763351488864,0.4819,3181.5,3181.0,6.82949022]
[1763351493293,0.4819,3181.5,3181.1,1.1337408]
[1763351494312,0.4819,3181.5,3181.2,0.405504]
[1763351494460,0.002,3181.6,3181.4,1.1337408]
[1763351494666,0.002,3181.6,3181.4,4.9437408]
[1763351496386,0.002,3181.6,3181.5,0.405504]
[1763351496589,0.002,3181.6,3181.5,5.3492448]
[1763351496790,0.002,3181.6,3181.5,1.5392448]
[1763351500714,0.4528,3181.6,3181.5,7.23499422]
[1763351500918,0.9347,3181.6,3181.5,7.23499422]
[1763351502488,0.9347,3181.6,3180.8,7.36497584]
[1763351502723,0.4508,3181.3,3180.8,5.69574942]
[1763351502923,0.4508,3181.3,3180.9,1.1337408]
[1763351503216,0.4819,3181.2,3180.9,1.1337408]
[1763351503522,0.002,3181.6,3181.2,1.1337408]
[1763351503725,0.4839,3181.6,3181.2,1.1337408]
[1763351503922,0.4508,3181.3,3181.2,1.1337408]
[1763351504130,0.4839,3181.6,3181.2,1.1337408]
[1763351505133,0.4508,3181.3,3181.2,1.1337408]
[1763351505588,0.9327,3181.3,3181.2,1.1337408]
[1763351509522,0.4508,3181.3,3181.2,1.1337408]
[1763351510008,0.9327,3181.3,3181.2,1.1337408]
[1763351510904,0.9327,3181.3,3180.4,1.66922642]
[1763351511099,0.002,3181.6,3180.1,1.66922642]
[1763351511100,0.4508,3180.5,3180.1,1.66922642]
[1763351511291,0.4508,3180.5,3180.1,2.80296722]
[1763351511514,0.49546433,3181.6,3180.3,5.69574942]
[1763351511723,0.4622,3181.5,3181.1,5.69574942]
[1763351512120,0.4762,3181.2,3181.0,1.1337408]
[1763351512320,0.4622,3181.5,3180.8,1.1337408]
[1763351512520,0.4622,3181.4,3180.8,1.1337408]
[1763351514195,0.002,3181.6,3181.1,1.1337408]
[1763351514403,0.4622,3181.5,3181.1,1.1347408]
[1763351514704,0.002,3182.0,3181.5,4.4527408]
[1763351514903,0.6523,3183.9,3182.1,0.405504]
[1763351515121,0.1901,3183.9,3182.4,1.5392448]
[1763351515335,0.1901,3183.9,3182.6,1.5392448]
[1763351515336,0.4622,3183.7,3182.6,1.5392448]
[1763351515547,0.4622,3183.4,3182.7,0.405504]
[1763351516156,0.1901,3183.9,3182.7,0.405504]
[1763351516310,0.4622,3183.7,3182.7,0.405504]
[1763351516638,0.4622,3183.4,3182.7,0.405504]
[1763351517227,0.4622,3183.2,3182.7,0.405504]
[1763351517411,0.4782,3182.8,3182.7,0.405504]
[1763351517722,0.4782,3182.8,3182.6,1.66393489]
[1763351517723,0.9404,3182.8,3182.6,0.83230678]
[1763351518034,0.4762,3182.7,3182.6,0.83230678]
[1763351518232,0.9384,3182.7,3182.5,0.83230678]
[1763351518411,0.002,3182.8,3182.6,1.23781078]
[1763351518609,0.002,3182.8,3182.0,8.28618342]
[1763351518610,0.002,3182.8,3182.7,0.83230585]
[1763351518810,0.9404,3182.8,3182.7,0.83230585]
[1763351520937,0.9404,3182.8,3182.4,0.83230585]
[1763351521098,0.4762,3182.5,3182.2,0.83230585]
[1763351521304,0.4622,3182.7,3182.2,0.83230585]
[1763351521609,0.002,3182.8,3182.5,0.83230585]
[1763351521937,0.002,3182.8,3182.4,0.83230585]
[1763351523203,0.002,3182.8,3182.6,0.83230585]
[1763351523637,0.9384,3182.7,3182.5,0.83230585]
[1763351523833,0.4762,3182.5,3182.4,0.83230585]
[1763351524038,0.4622,3182.6,3182.3,0.83230585]
[1763351524200,0.4622,3182.5,3182.3,0.83230585]
[1763351524558,0.4762,3182.4,3182.2,0.83230585]
[1763351524762,0.4762,3182.2,3181.8,0.83230585]
[1763351524948,0.002,3182.8,3181.8,0.83230585]
[1763351524949,0.6613,3181.9,3181.8,0.83230585]
[1763351525146,0.6613,3181.9,3181.7,0.83230585]
[1763351525348,0.4622,3182.3,3181.8,0.83230585]
[1763351525732,0.4622,3182.3,3181.9,0.405504]
[1763351525933,0.4622,3182.3,3181.9,1.23780985]
[1763351526132,0.4622,3182.6,3181.9,1.23780985]
[1763351526355,0.4622,3182.6,3182.0,0.83230585]
[1763351526874,0.4622,3182.6,3181.9,1.23780985]
[1763351527967,0.4762,3182.0,3181.9,0.83230585]
[1763351528167,0.4762,3182.0,3181.8,0.83230585]
[1763351528367,0.4762,3182.0,3181.5,1.1337408]
[1763351528368,0.6473,3181.9,3181.7,0.83230585]
[1763351528566,0.6473,3181.9,3181.3,0.83230585]
[1763351528567,0.4762,3181.6,3181.3,0.83230585]
[1763351528767,0.4622,3181.8,3181.2,0.83230585]
[1763351528978,0.4622,3181.8,3181.1,0.001]
[1763351528979,0.4762,3181.3,3181.1,0.001]
[1763351529147,0.9384,3181.2,3181.1,0.001]
[1763351529346,0.1851,3181.9,3181.1,0.001]
[1763351529663,0.1851,3181.9,3181.2,0.83230585]
[1763351529664,0.4622,3181.5,3181.2,0.83230585]
[1763351530169,0.4622,3181.5,3181.1,0.001]
[1763351530170,0.1851,3181.9,3181.3,0.83230585]
[1763351530367,0.6473,3181.9,3181.3,0.83230585]
[1763351531069,0.6473,3181.9,3181.6,0.83230585]
[1763351531276,0.6473,3181.9,3181.6,0.405504]
[1763351531574,0.002,3182.8,3181.9,0.405504]
[1763351531575,0.4622,3182.3,3181.9,0.405504]
[1763351531770,0.4622,3182.3,3182.0,0.83347321]
[1763351532335,0.002,3182.4,3182.0,0.83347321]
[1763351532561,0.4642,3182.4,3182.0,0.83347321]
[1763351534644,0.002,3182.4,3182.0,0.83347321]
[1763351534844,0.4622,3182.3,3182.0,0.83347321]
[1763351535656,0.4762,3182.1,3182.0,1.23897721]
[1763351535980,0.4762,3182.1,3182.0,0.83347321]
[1763351536285,0.9384,3182.1,3181.8,0.001]
[1763351536451,0.6421,3181.9,3181.8,0.001]
[1763351536656,1.1075,3181.9,3181.8,0.001]
[1763351542867,0.6421,3181.9,3181.8,0.001]
[1763351543069,0.6421,3181.9,3181.8,1.96821401]
[1763351543070,1.1527,3181.9,3181.8,1.96821401]
[1763351544176,0.4732,3182.3,3181.8,1.1347408]
[1763351544373,0.4732,3182.3,3181.9,0.83430128]
[1763351544783,0.002,3182.4,3182.0,0.83430128]
[1763351545170,0.002,3182.4,3182.3,1.1337408]
[1763351547132,0.002,3182.8,3182.3,1.5392448]
[1763351547299,0.002,3182.8,3182.7,8.21655636]
[1763351547622,0.002,3182.8,3182.7,1.1337408]
[1763351547785,0.002,3182.8,3182.7,2.80220586]
[1763351547986,0.002,3182.8,3182.7,3.20770986]
[1763351548181,0.002,3182.8,3182.7,11.01876222]
[1763351552214,0.002,3182.8,3182.7,14.82876222]
[1763351553408,0.002,3182.8,3182.7,13.16029716]
[1763351554427,0.002,3183.1,3182.8,1.5392448]
[1763351554725,0.4732,3183.7,3182.8,1.5392448]
[1763351554925,0.4732,3183.7,3183.5,0.83182208]
[1763351555218,0.4945,3183.6,3183.5,0.8312637]
[1763351556085,0.4732,3183.7,3183.5,0.8312637]
[1763351556335,0.19,3183.9,3183.5,0.8312637]
[1763351556527,0.19,3183.9,3183.6,0.8312637]
[1763351556742,0.005,3183.9,3183.8,7.81105236]
[1763351557236,0.005,3183.9,3183.8,9.04613771]
[1763351557393,0.6845,3183.9,3183.8,8.64063256]
[1763351557588,1.1577,3183.9,3183.7,0.8295802]
[1763351557924,1.1577,3183.9,3183.3,0.8295802]
[1763351557925,0.9677,3183.8,3183.3,0.8295802]
[1763351558109,0.19,3183.9,3183.3,0.8295802]
[1763351558285,0.4732,3183.7,3183.3,0.8295802]
[1763351558491,0.4945,3183.4,3183.3,0.8295802]
[1763351558689,0.9677,3183.4,3183.3,0.8295802]
[1763351559128,0.19,3183.9,3183.3,1.2350842]
[1763351559301,0.19,3183.9,3183.4,2.368825]
[1763351559699,0.6632,3183.9,3183.4,2.368825]
[1763351559900,0.6632,3183.9,3183.5,0.8295802]
[1763351560105,0.19,3183.9,3183.5,0.8295802]
[1763351560305,0.19,3183.9,3183.5,1.2350842]
[1763351560306,0.4945,3183.6,3183.5,1.2350842]
[1763351560725,0.9677,3183.6,3183.4,1.963321]
[1763351560914,0.4945,3183.5,3183.4,0.8295802]
[1763351561109,0.9677,3183.5,3183.3,0.8295802]
[1763351561500,0.4732,3183.5,3183.3,0.8295802]
[1763351561724,0.19,3183.9,3183.3,0.8295802]
[1763351561725,0.6632,3183.9,3183.3,0.8295802]
[1763351562296,0.19,3183.9,3183.3,0.8295802]
[1763351562597,0.4732,3183.8,3183.3,0.8295802]
[1763351565831,0.4732,3183.8,3183.4,1.1337408]
[1763351566034,0.4732,3183.8,3183.4,1.963321]
[1763351568823,0.192,3183.9,3183.5,0.405504]
[1763351569030,0.192,3183.9,3183.5,1.2350842]
[1763351569516,0.6652,3183.9,3183.5,1.2350842]
[1763351570332,0.6652,3183.9,3183.6,0.8295802]
[1763351570535,0.6652,3183.9,3183.7,0.8295802]
[1763351570714,0.192,3183.9,3183.7,0.8295802]
[1763351571238,0.9677,3183.8,3183.7,0.8295802]
[1763351571610,0.192,3183.9,3183.7,0.8295802]
[1763351571942,0.4659,3183.8,3183.7,0.8295802]
[1763351572317,0.4659,3183.8,3183.6,1.10909611]
[1763351572639,0.4659,3183.8,3183.7,1.1337408]
[1763351573545,0.926,3183.8,3183.7,2.24283691]
[1763351573840,0.926,3183.8,3183.6,4.70252865]
[1763351574041,0.926,3183.7,3183.6,5.0037408]
[1763351574205,0.926,3183.7,3183.6,5.83626945]
[1763351574542,0.926,3183.7,3183.6,4.70252865]
[1763351574745,0.926,3183.7,3183.6,3.87]
[1763351575245,0.926,3183.7,3183.6,4.70252865]
[1763351576239,0.926,3183.7,3183.6,3.87]
[1763351577706,0.926,3183.7,3183.6,5.0037408]
[1763351577912,0.192,3183.9,3183.6,3.87]
[1763351578236,0.4601,3183.8,3183.7,1.1127095]
[1763351578611,0.4659,3183.8,3183.7,1.1127095]
[1763351579207,0.926,3183.8,3183.7,1.1127095]
[1763351581670,0.192,3183.9,3183.8,0.405504]
[1763351581671,0.007,3183.9,3183.8,0.405504]
[1763351581869,0.6631,3183.9,3183.8,1.66956757]
[1763351582163,1.129,3183.9,3183.7,1.66956757]
[1763351582579,0.203,3183.9,3183.7,1.66956757]
[1763351582737,0.203,3183.9,3183.8,1.66956757]
[1763351582935,0.007,3183.9,3183.6,8.94479316]
[1763351583165,0.007,3183.9,3183.7,0.405504]
[1763351584167,0.203,3183.9,3183.6,8.94479316]
[1763351586063,0.007,3183.9,3183.7,0.405504]
[1763351586270,0.203,3183.9,3183.7,0.405504]
[1763351589197,0.6631,3183.9,3183.7,0.405504]
[1763351589501,0.4659,3183.8,3183.7,0.405504]
[1763351590185,0.4659,3183.8,3183.7,5.4092448]
[1763351591095,0.4659,3183.8,3183.7,10.63077625]
[1763351591889,0.203,3183.9,3183.8,1.1337408]
[1763351592271,1.129,3183.9,3183.8,1.1337408]
[1763351595204,1.129,3183.9,3183.8,1.67306808]
[1763351596122,1.129,3183.9,3183.8,8.43384433]
[1763351596907,1.129,3183.9,3183.8,6.76077625]
[1763351598897,1.129,3183.9,3183.8,1.1337408]
[1763351605716,1.129,3183.9,3183.8,8.49066608]
[1763351605916,0.007,3183.9,3183.8,6.817598]
[1763351606515,0.4845,3183.9,3183.8,1.1337408]
[1763351606713,1.1364,3183.9,3183.8,1.1337408]
[1763351608539,0.6658,3183.9,3183.8,1.1337408]
[1763351608746,0.007,3183.9,3183.8,1.1337408]
[1763351613122,0.007,3183.9,3183.8,1.5392448]
[1763351615955,0.007,3183.9,3183.8,4.23099019]
[1763351616321,0.007,3183.9,3183.8,2.0098448]
[1763351616729,0.007,3183.9,3183.8,5.8798448]
[1763351618326,0.007,3183.9,3183.8,2.0098448]
[1763351618553,0.007,3183.9,3183.8,4.23099019]
[1763351618754,0.6658,3183.9,3183.8,2.0098448]
[1763351619294,0.007,3183.9,3183.8,4.23099019]
[1763351620089,0.007,3183.9,3183.8,2.0098448]
[1763351620390,0.007,3183.9,3183.8,2.80802928]
[1763351620577,0.007,3183.9,3183.8,2.3256448]
[1763351621380,0.007,3183.9,3183.8,4.55272255]
[1763351622789,0.007,3183.9,3183.8,4.23692255]
[1763351624504,0.007,3183.9,3183.8,2.0098448]
[1763351624662,1.1364,3183.9,3183.6,2.22707775]
[1763351624858,0.6589,3183.9,3183.6,1.5392448]
[1763351625056,0.1883,3183.9,3183.8,1.67062251]
[1763351625357,0.6658,3183.9,3183.8,1.67062251]
[1763351625572,1.1364,3183.9,3183.8,1.67062251]
[1763351625870,0.007,3183.9,3183.6,1.1337408]
[1763351626100,0.007,3183.9,3183.8,9.45017975]
[1763351626414,0.007,3183.9,3183.8,7.70548648]
[1763351628012,0.002,3184.3,3184.0,0.3158]
[1763351628213,0.002,3184.3,3184.2,7.223102]
[1763351628420,0.002,3184.3,3184.2,9.44872481]
[1763351628795,0.002,3184.3,3184.2,7.693702]
[1763351629883,0.9501,3184.3,3184.2,1.1337408]
[1763351630078,0.9501,3184.3,3184.0,2.22562281]
[1763351630279,0.002,3184.3,3184.1,1.11321979]
[1763351630494,0.002,3184.3,3183.8,1.66941859]
[1763351630495,0.002,3184.3,3184.2,0.8350798]
[1763351630890,0.4775,3184.0,3183.6,0.1863]
[1763351631122,0.6588,3183.7,3183.6,0.1863]
[1763351631621,1.1371,3183.7,3183.5,1.66941859]
[1763351631820,0.6596,3183.7,3183.5,1.66941859]
[1763351632020,0.4562,3183.6,3183.5,1.66941859]
[1763351632209,0.9345,3183.6,3183.5,1.66941859]
[1763351633621,0.9345,3183.6,3183.4,1.66941859]
[1763351633937,0.4783,3183.5,3183.4,1.66941859]
[1763351634105,0.9345,3183.5,3183.4,2.80315939]
[1763351634630,0.9345,3183.5,3183.4,1.66941859]
[1763351634847,0.9345,3183.5,3183.3,1.66941859]
[1763351635014,0.4783,3183.4,3183.3,1.66941859]
[1763351635214,0.9345,3183.4,3183.3,1.66941859]
[1763351635817,0.9345,3183.4,3183.3,7.35327579]
[1763351636341,0.1813,3183.7,3183.4,1.1337408]
[1763351636638,0.1813,3183.7,3183.4,2.80437605]
[1763351637136,0.6596,3183.7,3183.4,2.80437605]
[1763351637707,0.4562,3183.5,3183.4,2.80437605]
[1763351638643,0.4562,3183.5,3183.4,1.67063525]
[1763351638847,0.9345,3183.5,3183.1,1.67063525]
[1763351639144,0.4562,3183.1,3183.0,0.001]
[1763351639509,0.9345,3183.1,3183.0,0.001]
[1763351640542,0.4783,3183.6,3183.0,0.001]
[1763351640719,0.4783,3183.6,3183.4,0.001]
[1763351641256,0.4562,3183.5,3183.4,0.001]
[1763351641737,0.9345,3183.5,3183.4,0.001]
[1763351644026,0.4562,3183.5,3183.4,0.001]
[1763351645370,0.9345,3183.5,3183.4,0.001]
[1763351647849,0.9345,3183.5,3183.0,0.001]
[1763351648046,0.4562,3183.1,3183.0,0.001]
[1763351648246,0.4783,3183.4,3183.0,0.001]
[1763351648247,0.4783,3183.4,3183.0,1.1347408]
[1763351649167,0.1952,3183.9,3183.2,5.6838572]
[1763351649414,0.4783,3183.7,3183.2,5.6838572]
[1763351649615,0.4783,3183.7,3183.3,1.1337408]
[1763351649810,0.4783,3183.7,3183.5,5.6838572]
[1763351649979,0.4783,3183.7,3183.0,0.001]
[1763351650323,0.4783,3183.7,3183.3,5.6838572]
[1763351653217,0.4783,3184.2,3183.6,5.7283572]
[1763351653395,0.6735,3183.9,3183.6,5.6838572]
[1763351653566,0.4562,3183.7,3183.6,5.6838572]
[1763351653767,0.4562,3183.7,3183.6,6.817598]
[1763351654109,0.1952,3183.9,3183.6,6.817598]
[1763351654315,0.6735,3183.9,3183.6,6.817598]
[1763351654810,0.002,3184.3,3183.8,0.0445]
[1763351655011,0.002,3184.3,3184.1,1.1337408]
[1763351655568,0.4803,3184.3,3184.1,1.1337408]
[1763351655773,0.4562,3184.2,3184.1,1.1337408]
[1763351656568,0.002,3184.3,3184.2,0.405504]
[1763351656714,0.002,3184.3,3184.1,1.1337408]
[1763351659034,0.002,3184.3,3184.2,6.75976585]
[1763351660374,0.4619,3184.3,3184.2,6.75976585]
[1763351660938,0.9426,3184.3,3184.2,6.75976585]
[1763351665545,0.9426,3184.3,3183.9,1.11075981]
[1763351665774,0.4891,3184.1,3183.8,1.1337408]
[1763351665978,0.002,3184.3,3183.7,2.24450061]
[1763351666180,0.4891,3183.9,3183.7,2.24450061]
[1763351666549,0.4891,3183.9,3183.8,6.75976585]
[1763351668753,1.1243,3183.9,3183.8,1.1337408]
[1763351669470,0.6735,3183.9,3183.8,6.75976585]
[1763351669854,0.4891,3183.9,3183.8,6.75976585]
[1763351670498,0.9399,3183.9,3183.8,6.75976585]
[1763351670676,0.4891,3183.9,3183.8,6.75976585]
[1763351670975,1.1243,3183.9,3183.8,1.1337408]
[1763351671770,1.1243,3183.9,3183.6,1.11075981]
[1763351671965,0.4891,3183.7,3183.5,2.24450061]
[1763351672166,0.4508,3183.8,3183.5,2.24450061]
[1763351672375,0.4508,3183.8,3183.6,1.11075981]
[1763351672580,0.4891,3183.5,3183.4,1.11175981]
[1763351672968,0.9399,3183.5,3183.4,1.11175981]
[1763351673169,0.9399,3183.5,3183.4,0.001]
[1763351673685,0.9399,3183.5,3183.4,1.11442213]
[1763351674593,0.9399,3183.5,3183.4,0.001]
[1763351679025,1.59649251,3183.5,3183.4,0.001]
[1763351679797,0.9399,3183.5,3183.4,0.001]
[1763351685291,0.4891,3183.5,3183.4,0.001]
[1763351685486,0.4508,3183.7,3183.4,0.001]
[1763351685912,0.1844,3183.9,3183.4,0.001]
[1763351686272,0.6352,3183.9,3183.4,0.001]
[1763351686697,0.1844,3183.9,3183.4,0.001]
[1763351686901,0.4508,3183.8,3183.4,0.001]
[1763351687709,0.4891,3183.5,3183.4,0.001]
[1763351688530,0.9399,3183.5,3183.4,0.001]
[1763351690093,1.59649251,3183.5,3183.4,0.001]
[1763351690293,0.9399,3183.5,3183.4,0.001]
[1763351690992,0.4891,3183.5,3183.4,0.001]
[1763351691689,0.9708,3183.5,3183.4,0.001]
[1763351694408,0.9728,3183.5,3183.4,0.001]
[1763351697417,0.9708,3183.5,3183.4,0.001]
[1763351698366,6.59682505,3183.5,3183.4,0.001]
[1763351698518,8.68439794,3183.5,3183.4,0.001]
[1763351699707,9.17759592,3183.5,3183.4,0.001]
[1763351699908,8.68439794,3183.5,3183.4,0.001]
[1763351702450,1.1487825,3183.5,3183.4,0.001]
[1763351702614,0.002,3183.5,3183.4,0.0475]
[1763351704442,0.002,3183.5,3183.4,0.88181734]
[1763351704634,0.002,3183.5,3183.4,0.094]
[1763351704955,0.002,3183.5,3183.4,0.0475]
[1763351705118,0.4603,3183.5,3183.4,0.83819918]
[1763351705317,0.942,3183.5,3183.4,0.83819918]
[1763351705526,0.4603,3183.5,3183.4,0.83819918]
[1763351705851,0.002,3183.5,3183.4,0.83819918]
[1763351706055,0.002,3183.5,3183.4,0.88469918]
[1763351707046,0.002,3183.5,3183.4,0.83819918]
[1763351707047,0.4603,3183.5,3183.4,0.83819918]
[1763351707459,0.942,3183.5,3183.4,0.001]
[1763351707756,1.59880251,3183.5,3183.0,0.001]
[1763351707918,0.4583,3183.3,3183.0,0.001]
[1763351708117,1.15197411,3183.5,3183.0,0.001]
[1763351708317,0.4951716,3183.5,3183.0,0.001]